fUSD/lending_fUSD_20250607
["ID","MTS","AMOUNT","RATE_DAILY","PERIOD"]
[364941042,1749325834249,-2.23003338,0.00019259,2]
[364941043,1749325834261,-480.0,0.00019259,2]
[364941060,1749325837646,-377.37844347,0.00019056,2]
[364941061,1749325837657,-500.0,0.00019056,2]
[364941062,1749325837667,-151.42155653,0.00019056,2]
[364941063,1749325837695,-231.07790299,0.00019056,2]
[364941064,1749325837704,-3674.1844512,0.0001919,2]
[364941065,1749325837715,-17.76996662,0.00019259,2]
[364941066,1749325837726,-500.0,0.00019259,2]
[364941067,1749325837736,-500.0,0.00019259,2]
[364941068,1749325837746,-500.0,0.00019259,2]
[364941069,1749325837755,-936.0,0.00019259,2]
[364941070,1749325837766,-500.0,0.00019259,2]
[364941071,1749325837775,-500.0,0.00019259,2]
[364941072,1749325837785,-500.0,0.00019259,2]
[364941073,1749325837794,-500.0,0.00019259,2]
[364941074,1749325837804,-363.32181919,0.00019259,2]
[364941191,1749325839983,-115.81814947,0.00019118,2]
[364941194,1749325839995,-767.18185053,0.00019118,2]
[364941196,1749325840004,-136.67818081,0.00019259,2]
[364941198,1749325840016,-500.0,0.00019259,2]
[364941199,1749325840026,-500.0,0.00019259,2]
[364941201,1749325840036,-500.0,0.00019259,2]
[364941203,1749325840045,-500.0,0.00019259,2]
[364941206,1749325840055,-500.0,0.00019259,2]
[364941208,1749325840064,-500.0,0.00019259,2]
[364941210,1749325840074,-500.0,0.00019259,2]
[364941212,1749325840083,-500.0,0.00019259,2]
[364941214,1749325840093,-500.0,0.00019259,2]
[364941216,1749325840102,-500.0,0.00019259,2]
[364941218,1749325840112,-370.63972052,0.00019259,2]
[364941220,1749325840128,-129.36027948,0.00019259,2]
[364941222,1749325840138,-500.0,0.00019259,2]
[364941224,1749325840147,-500.0,0.00019259,2]
[364941226,1749325840157,-500.0,0.00019259,2]
[364941229,1749325840171,-500.0,0.00019259,2]
[364941231,1749325840181,-500.0,0.00019259,2]
[364941233,1749325840191,-500.0,0.00019259,2]
[364941235,1749325840200,-500.0,0.00019259,2]
[364941237,1749325840210,-500.0,0.00019259,2]
[364941239,1749325840219,-500.0,0.00019259,2]
[364941241,1749325840229,-500.0,0.00019259,2]
[364941243,1749325840238,-500.0,0.00019259,2]
[364941245,1749325840248,-116.40917699,0.00019259,2]
[364941247,1749325840260,-383.59082301,0.00019259,2]
[364941249,1749325840269,-500.0,0.00019259,2]
[364941251,1749325840279,-500.0,0.00019259,2]
[364941253,1749325840288,-500.0,0.00019259,2]
[364941255,1749325840297,-500.0,0.00019259,2]
[364941257,1749325840307,-500.0,0.00019259,2]
[364941259,1749325840317,-500.0,0.00019259,2]
[364941261,1749325840326,-500.0,0.00019259,2]
[364941263,1749325840336,-500.0,0.00019259,2]
[364941265,1749325840347,-500.0,0.00019259,2]
[364941267,1749325840357,-500.0,0.00019259,2]
[364941269,1749325840367,-500.0,0.00019259,2]
[364941271,1749325840377,-500.0,0.00019259,2]
[364941273,1749325840386,-500.0,0.00019259,2]
[364941275,1749325840398,-500.0,0.00019259,2]
[364941277,1749325840407,-500.0,0.00019259,2]
[364941279,1749325840417,-500.0,0.00019259,2]
[364941281,1749325840426,-500.0,0.00019259,2]
[364941283,1749325840436,-500.0,0.00019259,2]
[364941285,1749325840446,-500.0,0.00019259,2]
[364941287,1749325840455,-500.0,0.00019259,2]
[364941289,1749325840465,-500.0,0.00019259,2]
[364941291,1749325840475,-500.0,0.00019259,2]
[364941293,1749325840485,-500.0,0.00019259,2]
[364941295,1749325840495,-500.0,0.00019259,2]
[364941297,1749325840505,-500.0,0.00019259,2]
[364941299,1749325840516,-500.0,0.00019259,2]
[364941301,1749325840527,-500.0,0.00019259,2]
[364941303,1749325840537,-500.0,0.00019259,2]
[364941305,1749325840547,-500.0,0.00019259,2]
[364941307,1749325840558,-500.0,0.00019259,2]
[364941309,1749325840568,-500.0,0.00019259,2]
[364941311,1749325840578,-500.0,0.00019259,2]
[364941313,1749325840588,-500.0,0.00019259,2]
[364941315,1749325840597,-500.0,0.00019259,2]
[364941317,1749325840612,-500.0,0.00019259,2]
[364941319,1749325840621,-500.0,0.00019259,2]
[364941321,1749325840631,-500.0,0.00019259,2]
[364941323,1749325840641,-500.0,0.00019259,2]
[364941325,1749325840653,-500.0,0.00019259,2]
[364941327,1749325840664,-500.0,0.00019259,2]
[364941329,1749325840674,-500.0,0.00019259,2]
[364941331,1749325840684,-500.0,0.00019259,2]
[364941334,1749325840694,-500.0,0.00019259,2]
[364941335,1749325840704,-500.0,0.00019259,2]
[364941337,1749325840714,-500.0,0.00019259,2]
[364941339,1749325840723,-500.0,0.00019259,2]
[364941341,1749325840733,-500.0,0.00019259,2]
[364941343,1749325840743,-500.0,0.00019259,2]
[364941346,1749325840753,-500.0,0.00019259,2]
[364941347,1749325840763,-500.0,0.00019259,2]
[364941349,1749325840773,-500.0,0.00019259,2]
[364941351,1749325840783,-500.0,0.00019259,2]
[364941353,1749325840792,-111.40917699,0.00019259,2]
[364941355,1749325841626,200.0,0.00016606,2]
[364941366,1749325842727,-2500.0,0.000191,2]
[364941367,1749325842739,-388.59082301,0.00019259,2]
[364941368,1749325842749,-500.0,0.00019259,2]
[364941369,1749325842759,-500.0,0.00019259,2]
[364941370,1749325842769,-500.0,0.00019259,2]
[364941371,1749325842779,-500.0,0.00019259,2]
[364941372,1749325842790,-500.0,0.00019259,2]
[364941373,1749325842801,-500.0,0.00019259,2]
[364941374,1749325842812,-500.0,0.00019259,2]
[364941375,1749325842822,-500.0,0.00019259,2]
[364941376,1749325842833,-500.0,0.00019259,2]
[364941377,1749325842843,-500.0,0.00019259,2]
[364941378,1749325842854,-500.0,0.00019259,2]
[364941379,1749325842865,-500.0,0.00019259,2]
[364941380,1749325842876,-500.0,0.00019259,2]
[364941381,1749325842886,-500.0,0.00019259,2]
[364941382,1749325842897,-500.0,0.00019259,2]
[364941383,1749325842907,-500.0,0.00019259,2]
[364941384,1749325842917,-500.0,0.00019259,2]
[364941385,1749325842929,-500.0,0.00019259,2]
[364941386,1749325842940,-500.0,0.00019259,2]
[364941387,1749325842951,-500.0,0.00019259,2]
[364941388,1749325842961,-500.0,0.00019259,2]
[364941389,1749325842971,-500.0,0.00019259,2]
[364941390,1749325842981,-500.0,0.00019259,2]
[364941391,1749325842991,-500.0,0.00019259,2]
[364941392,1749325843001,-500.0,0.00019259,2]
[364941393,1749325843011,-500.0,0.00019259,2]
[364941394,1749325843021,-500.0,0.00019259,2]
[364941395,1749325843031,-500.0,0.00019259,2]
[364941396,1749325843041,-500.0,0.00019259,2]
[364941397,1749325843051,-500.0,0.00019259,2]
[364941398,1749325843062,-500.0,0.00019259,2]
[364941399,1749325843072,-500.0,0.00019259,2]
[364941400,1749325843083,-500.0,0.00019259,2]
[364941401,1749325843095,-500.0,0.00019259,2]
[364941402,1749325843104,-500.0,0.00019259,2]
[364941403,1749325843116,-500.0,0.00019259,2]
[364941404,1749325843127,-500.0,0.00019259,2]
[364941405,1749325843137,-500.0,0.00019259,2]
[364941406,1749325843148,-500.0,0.00019259,2]
[364941407,1749325843157,-500.0,0.00019259,2]
[364941408,1749325843168,-500.0,0.00019259,2]
[364941409,1749325843178,-500.0,0.00019259,2]
[364941411,1749325843188,-500.0,0.00019259,2]
[364941412,1749325843199,-500.0,0.00019259,2]
[364941413,1749325843209,-940.0,0.00019259,2]
[364941414,1749325843220,-500.0,0.00019259,2]
[364941415,1749325843230,-500.0,0.00019259,2]
[364941416,1749325843240,-500.0,0.00019259,2]
[364941417,1749325843251,-500.0,0.00019259,2]
[364941418,1749325843260,-500.0,0.00019259,2]
[364941419,1749325843271,-500.0,0.00019259,2]
[364941420,1749325843281,-500.0,0.00019259,2]
[364941421,1749325843292,-500.0,0.00019259,2]
[364941422,1749325843302,-500.0,0.00019259,2]
[364941423,1749325843312,-500.0,0.00019259,2]
[364941424,1749325843323,-500.0,0.00019259,2]
[364941425,1749325843333,-500.0,0.00019259,2]
[364941426,1749325843344,-500.0,0.00019259,2]
[364941427,1749325843354,-500.0,0.00019259,2]
[364941428,1749325843365,-500.0,0.00019259,2]
[364941429,1749325843375,-500.0,0.00019259,2]
[364941430,1749325843386,-500.0,0.00019259,2]
[364941431,1749325843397,-500.0,0.00019259,2]
[364941432,1749325843408,-500.0,0.00019259,2]
[364941433,1749325843418,-500.0,0.00019259,2]
[364941434,1749325843428,-500.0,0.00019259,2]
[364941435,1749325843439,-500.0,0.00019259,2]
[364941436,1749325843449,-500.0,0.00019259,2]
[364941437,1749325843459,-500.0,0.00019259,2]
[364941438,1749325843470,-500.0,0.00019259,2]
[364941439,1749325843480,-500.0,0.00019259,2]
[364941440,1749325843490,-500.0,0.00019259,2]
[364941441,1749325843500,-500.0,0.00019259,2]
[364941442,1749325843511,-500.0,0.00019259,2]
[364941443,1749325843521,-500.0,0.00019259,2]
[364941444,1749325843532,-500.0,0.00019259,2]
[364941445,1749325843542,-500.0,0.00019259,2]
[364941446,1749325843553,-500.0,0.00019259,2]
[364941447,1749325843564,-500.0,0.00019259,2]
[364941448,1749325843574,-500.0,0.00019259,2]
[364941449,1749325843584,-500.0,0.00019259,2]
[364941450,1749325843594,-500.0,0.00019259,2]
[364941451,1749325843606,-500.0,0.00019259,2]
[364941452,1749325843617,-500.0,0.00019259,2]
[364941453,1749325843627,-500.0,0.00019259,2]
[364941454,1749325843638,-500.0,0.00019259,2]
[364941455,1749325843656,-500.0,0.00019259,2]
[364941456,1749325843668,-500.0,0.00019259,2]
[364941457,1749325843680,-500.0,0.00019259,2]
[364941458,1749325843690,-500.0,0.00019259,2]
[364941459,1749325843702,-500.0,0.00019259,2]
[364941460,1749325843713,-500.0,0.00019259,2]
[364941461,1749325843725,-500.0,0.00019259,2]
[364941462,1749325843736,-500.0,0.00019259,2]
[364941463,1749325843745,-500.0,0.00019259,2]
[364941464,1749325843757,-500.0,0.00019259,2]
[364941465,1749325843767,-500.0,0.00019259,2]
[364941466,1749325843778,-500.0,0.00019259,2]
[364941467,1749325843788,-500.0,0.00019259,2]
[364941468,1749325843799,-500.0,0.00019259,2]
[364941469,1749325843809,-500.0,0.00019259,2]
[364941470,1749325843820,-500.0,0.00019259,2]
[364941471,1749325843830,-500.0,0.00019259,2]
[364941472,1749325843841,-500.0,0.00019259,2]
[364941473,1749325843852,-500.0,0.00019259,2]
[364941474,1749325843864,-500.0,0.00019259,2]
[364941475,1749325843874,-500.0,0.00019259,2]
[364941476,1749325843884,-500.0,0.00019259,2]
[364941477,1749325843894,-500.0,0.00019259,2]
[364941478,1749325843905,-500.0,0.00019259,2]
[364941479,1749325843914,-500.0,0.00019259,2]
[364941480,1749325843925,-500.0,0.00019259,2]
[364941481,1749325843935,-500.0,0.00019259,2]
[364941482,1749325843945,-500.0,0.00019259,2]
[364941483,1749325843955,-500.0,0.00019259,2]
[364941484,1749325843964,-500.0,0.00019259,2]
[364941485,1749325843974,-500.0,0.00019259,2]
[364941486,1749325843983,-500.0,0.00019259,2]
[364941487,1749325843993,-500.0,0.00019259,2]
[364941488,1749325844004,-500.0,0.00019259,2]
[364941489,1749325844014,-500.0,0.00019259,2]
[364941490,1749325844024,-500.0,0.00019259,2]
[364941491,1749325844034,-500.0,0.00019259,2]
[364941492,1749325844044,-500.0,0.00019259,2]
[364941493,1749325844054,-500.0,0.00019259,2]
[364941494,1749325844064,-500.0,0.00019259,2]
[364941495,1749325844075,-500.0,0.00019259,2]
[364941496,1749325844085,-500.0,0.00019259,2]
[364941497,1749325844095,-500.0,0.00019259,2]
[364941498,1749325844105,-500.0,0.00019259,2]
[364941499,1749325844115,-500.0,0.00019259,2]
[364941500,1749325844124,-500.0,0.00019259,2]
[364941501,1749325844134,-500.0,0.00019259,2]
[364941502,1749325844144,-500.0,0.00019259,2]
[364941503,1749325844153,-500.0,0.00019259,2]
[364941504,1749325844163,-500.0,0.00019259,2]
[364941505,1749325844174,-500.0,0.00019259,2]
[364941506,1749325844184,-500.0,0.00019259,2]
[364941507,1749325844195,-500.0,0.00019259,2]
[364941508,1749325844206,-500.0,0.00019259,2]
[364941509,1749325844215,-500.0,0.00019259,2]
[364941510,1749325844225,-500.0,0.00019259,2]
[364941511,1749325844235,-500.0,0.00019259,2]
[364941512,1749325844245,-500.0,0.00019259,2]
[364941513,1749325844255,-994.0,0.00019259,2]
[364941514,1749325844265,-150.0,0.00019259,2]
[364941515,1749325844275,-200.0,0.00019259,2]
[364941516,1749325844285,-500.0,0.00019259,2]
[364941517,1749325844295,-150.0,0.00019259,2]
[364941518,1749325844305,-151.0,0.00019259,2]
[364941519,1749325844316,-452.87385746,0.00019265,2]
[364941520,1749325844326,-715.55041605,0.00019266,2]
[364941521,1749325844337,-250.0,0.00019267,2]
[364941522,1749325844347,-250.0,0.00019267,2]
[364941523,1749325844357,-452.87385746,0.00019276,2]
[364941524,1749325844367,-1120.85184008,0.00019277,2]
[364941525,1749325844378,-264.0,0.00019286,2]
[364941526,1749325844387,-500.0,0.00019286,2]
[364941527,1749325844397,-300.68,0.00019287,2]
[364941528,1749325844407,-300.85,0.00019287,2]
[364941529,1749325844417,-304.15,0.00019287,2]
[364941530,1749325844427,-305.95,0.00019287,2]
[364941531,1749325844437,-302.0,0.00019287,2]
[364941532,1749325844448,-303.1,0.00019287,2]
[364941533,1749325844459,-150.0,0.00019287,2]
[364941534,1749325844469,-191.454,0.00019288,2]
[364941535,1749325844481,-164.0,0.00019288,2]
[364941536,1749325844492,-171.477,0.00019288,2]
[364941537,1749325844503,-150.0,0.00019288,2]
[364941538,1749325844512,-150.451,0.00019288,2]
[364941539,1749325844523,-240.448,0.00019288,2]
[364941540,1749325844533,-227.626,0.00019288,2]
[364941541,1749325844543,-150.213,0.00019288,2]
[364941542,1749325844554,-156.819,0.00019288,2]
[364941543,1749325844565,-150.0,0.00019288,2]
[364941544,1749325844575,-150.172,0.00019288,2]
[364941545,1749325844585,-150.549,0.00019288,2]
[364941546,1749325844595,-157.949,0.00019288,2]
[364941547,1749325844605,-452.87385746,0.00019288,2]
[364941548,1749325844614,-1154.60924852,0.00019299,2]
[364941549,1749325844625,-452.87385746,0.00019299,2]
[364941550,1749325844636,-163.25,0.000193,2]
[364941551,1749325844650,-196.64098304,0.000193,2]
[364941552,1749325844659,-1000.0,0.000193,2]
[364941553,1749325844669,-300.0,0.00019305,2]
[364941554,1749325844678,-500.0,0.00019314,2]
[364941555,1749325844687,-3540.02099774,0.00019319,2]
[364941556,1749325844698,-300.19,0.00019322,2]
[364941557,1749325844708,-303.75,0.00019322,2]
[364941558,1749325844718,-300.02,0.00019322,2]
[364941559,1749325844728,-301.86,0.00019322,2]
[364941560,1749325844739,-304.9,0.00019322,2]
[364941561,1749325844750,-302.36,0.00019322,2]
[364941562,1749325844760,-304.19,0.00019322,2]
[364941563,1749325844770,-302.97,0.00019322,2]
[364941564,1749325844780,-302.65,0.00019322,2]
[364941565,1749325844789,-302.91,0.00019322,2]
[364941566,1749325844799,-303.0,0.00019322,2]
[364941567,1749325844808,-302.83,0.00019322,2]
[364941568,1749325844817,-302.74,0.00019322,2]
[364941569,1749325844826,-302.81,0.00019322,2]
[364941570,1749325844835,-302.16,0.00019322,2]
[364941571,1749325844845,-300.56,0.00019322,2]
[364941572,1749325844857,-300.42,0.00019322,2]
[364941573,1749325844868,-305.29,0.00019322,2]
[364941574,1749325844878,-305.07,0.00019323,2]
[364941575,1749325844888,-304.69,0.00019323,2]
[364941576,1749325844898,-302.49,0.00019323,2]
[364941577,1749325844909,-303.92,0.00019323,2]
[364941578,1749325844919,-301.28,0.00019323,2]
[364941579,1749325844930,-150.99,0.00019339,2]
[364941580,1749325844940,-47254.56,0.00019339,2]
[364941581,1749325844950,-299.99,0.00019339,7]
[364941582,1749325844960,-4753.19780601,0.00019339,2]
[364941583,1749325845273,-500.0,0.00019339,2]
[364941585,1749325845533,-315.0725,0.00019339,2]
[364941605,1749325845936,-245.0,0.00019118,2]
[364941606,1749325845946,-269.77084314,0.00019339,2]
[364941607,1749325845956,-1217.29969399,0.00019339,2]
[364941609,1749325845965,-500.0,0.00019341,2]
[364941610,1749325845974,-715.55041605,0.00019356,2]
[364941612,1749325845984,-577.97206873,0.00019369,2]
[364941614,1749325845993,-500.0,0.00019373,2]
[364941616,1749325846002,-500.0,0.00019373,2]
[364941618,1749325846013,-500.0,0.00019373,2]
[364941620,1749325846023,-1191.57,0.00019389,2]
[364941622,1749325846033,-311.73744498,0.00019389,2]
[364941624,1749325846043,-311.73744498,0.00019389,2]
[364941626,1749325846053,-301.877352,0.0001939,2]
[364941628,1749325846063,-3473.67473613,0.00019399,2]
[364941645,1749326500974,797.95,0.00016399,2]
[364941646,1749326651625,200.0,0.0001662,2]
[364941647,1749326652532,-200.0,0.00017258,2]
[364941648,1749326681206,200.0,0.0001662,2]
[364941704,1749327011966,200.0,0.00016896,2]
[364941705,1749327031877,-200.0,0.00017549,2]
[364941706,1749327031888,-200.0,0.00018202,3]
[364941707,1749327031898,-1000.0,0.00018211,2]
[364941708,1749327031909,-162.95,0.00018214,2]
[364941709,1749327031920,-240.86569462,0.00018243,2]
[364941719,1749327037837,-91.15430538,0.00018243,2]
[364941720,1749327037848,-1200.0,0.00018307,2]
[364941721,1749327037859,-300.0,0.00018307,2]
[364941722,1749327037870,-23900.0,0.00018308,2]
[364941723,1749327037880,-629.79,0.00018394,2]
[364941724,1749327037891,-150.0,0.00018495,7]
[364941725,1749327037902,-226.11,0.00018503,2]
[364941726,1749327037911,-168.41,0.00018517,2]
[364941727,1749327037922,-797.95,0.00018663,2]
[364941728,1749327037931,-557.0,0.00018803,2]
[364941729,1749327037941,-926.0,0.00018803,2]
[364941730,1749327037951,-1274.0,0.00018803,2]
[364941731,1749327037962,-1255.0,0.00018803,2]
[364941742,1749327038191,-200.0,0.00018855,4]
[364941744,1749327038204,-361.0,0.00018856,2]
[364941746,1749327038214,-850.0,0.00018887,2]
[364941748,1749327038223,-1159.0,0.00018888,2]
[364941751,1749327038234,-168.46,0.00018888,2]
[364941753,1749327038245,-4082.0,0.00018888,2]
[364941754,1749327038255,-7018.0,0.00018888,2]
[364941756,1749327038265,-852.0,0.00018888,2]
[364941758,1749327038275,-163.25,0.000189,2]
[364941760,1749327038284,-163.25,0.000189,2]
[364941762,1749327038294,-270.46258381,0.00018917,2]
[364941765,1749327038305,-1542.53741619,0.00018917,2]
[364941767,1749327038315,-153.0,0.0001895,2]
[364941769,1749327038325,-265.439261,0.00019011,2]
[364941771,1749327038334,-472.0,0.00019011,2]
[364941773,1749327038345,-302.0,0.00019043,2]
[364941775,1749327038354,-171.36,0.00019069,2]
[364941777,1749327038364,-1000.0,0.000191,2]
[364941779,1749327038374,-1960.0,0.00019105,2]
[364941780,1749327038383,-231.73652539,0.00019119,2]
[364941782,1749327038393,-207.4,0.00019121,2]
[364941784,1749327038403,-1957.856,0.00019121,2]
[364941786,1749327038413,-500.0,0.00019121,2]
[364941789,1749327038424,-500.0,0.00019121,2]
[364941791,1749327038434,-500.0,0.00019121,2]
[364941793,1749327038444,-500.0,0.00019121,2]
[364941795,1749327038454,-500.0,0.00019121,2]
[364941797,1749327038465,-500.0,0.00019121,2]
[364941799,1749327038475,-500.0,0.00019121,2]
[364941801,1749327038484,-500.0,0.00019121,2]
[364941803,1749327038494,-555.69659867,0.00019121,2]
[364941805,1749327038504,-211.15290955,0.00019131,2]
[364941807,1749327038514,-199.0,0.00019132,2]
[364941809,1749327038524,-150.0,0.00019132,2]
[364941811,1749327038534,-150.0,0.00019132,2]
[364941813,1749327038543,-150.0,0.00019132,2]
[364941814,1749327038554,-172.374,0.00019132,2]
[364941816,1749327038563,-191.972,0.00019132,2]
[364941818,1749327038573,-218.561,0.00019132,2]
[364941820,1749327038583,-290.477,0.00019132,2]
[364941822,1749327038592,-54.29700128,0.00019132,2]
[364941825,1749327038605,-184.55399872,0.00019132,2]
[364941827,1749327038615,-253.434,0.00019132,2]
[364941828,1749327038625,-69.33120497,0.00019132,2]
[364941831,1749327038638,-114.47479503,0.00019132,2]
[364941833,1749327038647,-204.223,0.00019132,2]
[364941835,1749327038657,-200.302,0.00019132,2]
[364941837,1749327038666,-15.86656345,0.00019132,2]
[364941841,1749327038703,-226.86743655,0.00019132,2]
[364941843,1749327038714,-1164.0,0.00019132,2]
[364941845,1749327038724,-944.0,0.00019132,2]
[364941847,1749327038734,-801.0,0.00019132,2]
[364941849,1749327038744,-394.19656005,0.00019132,2]
[364941859,1749327040085,-753.39438298,0.00018878,2]
[364941860,1749327040097,-735.568,0.00018878,2]
[364941861,1749327040244,-16998.22682331,0.00018878,2]
[364941862,1749327040254,-883.0,0.00018888,2]
[364941863,1749327040264,-241.80343995,0.00019132,2]
[364941864,1749327040274,-589.0,0.00019132,2]
[364941865,1749327040284,-2000.0,0.00019132,2]
[364941866,1749327040294,-2000.0,0.00019174,2]
[364941867,1749327040303,-500.0,0.00019174,2]
[364941868,1749327040313,-200.0,0.00019174,2]
[364941869,1749327040322,-2030.296672,0.00019176,2]
[364941870,1749327040332,-341.15,0.00019185,2]
[364941871,1749327040341,-170.61,0.00019185,2]
[364941873,1749327040351,-1.55611972,0.00019185,2]
[364941975,1749327045989,-169.05388028,0.00019185,2]
[364941976,1749327045999,-170.61,0.00019185,2]
[364941977,1749327046010,-199.68,0.00019185,2]
[364941978,1749327046019,-170.61,0.00019185,2]
[364941979,1749327046030,-170.61,0.00019185,2]
[364941980,1749327046040,-170.61,0.00019185,2]
[364941981,1749327046049,-1834.0,0.00019199,2]
[364941982,1749327046059,-170.61,0.000192,2]
[364941983,1749327046069,-163.25,0.000192,2]
[364941984,1749327046079,-459.26630152,0.00019231,2]
[364941985,1749327046089,-500.0,0.00019243,2]
[364941986,1749327046099,-439.0344,0.00019277,2]
[364941987,1749327046110,-154.09350213,0.00019288,2]
[364941988,1749327046120,-283.37191605,0.0001929,2]
[364942013,1749327132175,204.0,0.00016896,2]
[364942017,1749327287264,345.12,0.00013699,2]
[364942019,1749327498542,718.15,0.00016348,2]
[364942020,1749327527267,165.55528952,0.00016266,2]
[364942021,1749327595070,150.0,0.0,2]
[364942022,1749327873734,183.04,0.00016712,2]
[364942024,1749328015132,-151.0,0.00017122,2]
[364942025,1749328028334,1517.64,0.000153,2]
[364942026,1749328032194,591.66662995,0.00015,2]
[364942036,1749328041966,2063.72800914,0.0001305,2]
[364942039,1749328091656,200.0,0.00016508,2]
[364942042,1749328120807,66475.8790934,0.000151,2]
[364942043,1749328121355,492.67294595,0.000154,2]
[364942156,1749328231996,-200.0,0.00017209,2]
[364942157,1749328232006,-200.0,0.00017911,3]
[364942158,1749328232017,-375.80901143,0.00018,2]
[364942159,1749328232028,-639.21606571,0.00018,2]
[364942160,1749328232040,-440.1496964,0.00018,2]
[364942161,1749328232052,-478.77568738,0.00018,2]
[364942162,1749328232163,-2733.38942612,0.00018,2]
[364942163,1749328232174,-156.68,0.00018046,2]
[364942164,1749328232184,-1000.0,0.00018064,2]
[364942165,1749328232194,-500.0,0.00018219,2]
[364942166,1749328232205,-1200.0,0.00018273,2]
[364942167,1749328232215,-2923.02,0.00018274,2]
[364942168,1749328232225,-314.89,0.00018313,2]
[364942169,1749328232235,-300.0,0.00018327,2]
[364942170,1749328232245,-1068.95690779,0.00018328,2]
[364942171,1749328232254,-207.4,0.00018328,2]
[364942172,1749328232264,-300.0,0.00018338,2]
[364942173,1749328232274,-6943.12,0.00018339,2]
[364942174,1749328232283,-894.02,0.00018356,2]
[364942175,1749328232293,-150.0,0.00018378,7]
[364942176,1749328232302,-1522.0,0.00018534,2]
[364942177,1749328232313,-418.0,0.00018545,2]
[364942178,1749328232330,-170.61,0.00018578,2]
[364942179,1749328232341,-1000.0,0.000186,6]
[364942180,1749328232350,-718.15,0.00018612,2]
[364942181,1749328232360,-200.0,0.00018612,4]
[364942182,1749328232369,-174.72,0.000187,2]
[364942183,1749328232379,-170.61,0.000187,2]
[364942184,1749328232389,-247.55,0.000187,2]
[364942185,1749328232399,-170.61,0.000187,2]
[364942186,1749328232408,-163.25,0.000187,2]
[364942187,1749328232418,-170.61,0.000187,2]
[364942188,1749328232427,-163.25,0.000187,2]
[364942189,1749328232437,-2100.0,0.000187,6]
[364942190,1749328232446,-394.0,0.00018703,2]
[364942191,1749328232455,-1613.74025,0.00018796,2]
[364942193,1749328232464,-3100.0,0.000188,6]
[364942195,1749328232473,-1277.0,0.00018817,2]
[364942197,1749328232483,-4200.0,0.000189,6]
[364942198,1749328232493,-205.0,0.000189,2]
[364942199,1749328232504,-250.0,0.00019,2]
[364942200,1749328232514,-260.73,0.00019,2]
[364942201,1749328232525,-116.38341465,0.00019011,2]
[364942202,1749328232537,-122.51192035,0.00019011,2]
[364942203,1749328232547,-142.5737389,0.0001908,2]
[364942405,1749328237867,-826.0,0.0001877,7]
[364942406,1749328237878,-8.4262611,0.0001908,2]
[364942407,1749328237887,-1000.0,0.0001908,2]
[364942408,1749328237897,-500.0,0.0001908,2]
[364942409,1749328237908,-300.0,0.0001908,2]
[364942410,1749328237918,-500.0,0.0001908,2]
[364942411,1749328237928,-151.0,0.0001908,2]